bitfinex/quotes_BTCUSD_20230114
["timestamp","ask_amount","ask_price","bid_price","bid_amount"]
[1673730653541,1.620578,20912.0,20911.0,0.06556787]
[1673730655845,2.28850564,20912.0,20911.0,0.05556787]
[1673730656094,3.15720747,20912.0,20911.0,0.05556787]
[1673730656353,2.49782441,20912.0,20911.0,0.05556787]
[1673730656612,3.15719409,20912.0,20911.0,0.05556787]
[1673730656861,3.15719409,20912.0,20911.0,0.00456787]
[1673730656862,3.27319409,20912.0,20911.0,0.00456787]
[1673730657123,3.27319409,20912.0,20911.0,6.787e-05]
[1673730657124,2.63538809,20912.0,20911.0,6.787e-05]
[1673730657380,0.1,20911.0,20903.0,0.00563591]
[1673730657629,0.1143,20908.0,20903.0,0.00563591]
[1673730657899,1.62567495,20907.0,20903.0,0.00563591]
[1673730658153,0.47832,20907.0,20903.0,0.00563591]
[1673730658418,0.19072595,20907.0,20903.0,0.59833491]
[1673730658662,0.19072595,20906.0,20903.0,1.10143491]
[1673730658977,0.19072595,20906.0,20903.0,0.14463591]
[1673730659448,0.956589,20908.0,20903.0,0.00563591]
[1673730659688,0.956589,20908.0,20903.0,0.14463591]
[1673730659689,0.002,20907.0,20903.0,0.14463591]
[1673730659969,0.002,20907.0,20903.0,0.62302791]
[1673730660177,1.14731495,20908.0,20903.0,0.48402791]
[1673730660708,0.002,20906.0,20903.0,0.62302791]
[1673730660965,0.19272595,20906.0,20903.0,0.14463591]
[1673730661222,0.002,20906.0,20903.0,0.28363591]
[1673730661471,0.956653,20907.0,20903.0,0.14463591]
[1673730661740,0.478337,20906.0,20903.0,0.14463591]
[1673730662514,0.479337,20906.0,20903.0,0.28363591]
[1673730662803,0.001,20906.0,20903.0,0.28363591]
[1673730663047,0.001,20906.0,20903.0,1.35402591]
[1673730663325,0.001,20906.0,20904.0,0.319862]
[1673730663531,0.001,20906.0,20905.0,1.166891]
[1673730664344,6e-05,20910.0,20905.0,1.166891]
[1673730664595,6e-05,20910.0,20906.0,0.41983]
[1673730664861,6e-05,20910.0,20907.0,0.478304]
[1673730665113,6e-05,20910.0,20908.0,0.1]
[1673730665367,6e-05,20910.0,20908.0,0.578277]
[1673730665664,6e-05,20910.0,20908.0,0.478277]
[1673730666384,0.01906,20910.0,20908.0,0.482277]
[1673730666637,0.01906,20910.0,20908.0,0.960562]
[1673730667145,0.01906,20910.0,20909.0,0.319862]
[1673730667399,0.01906,20910.0,20909.0,0.419862]
[1673730667649,0.01906,20910.0,20909.0,1.490686]
[1673730668161,6e-05,20910.0,20909.0,1.490686]
[1673730668416,0.01806,20910.0,20909.0,1.400686]
[1673730668663,0.01806,20910.0,20909.0,1.390686]
[1673730668909,0.01806,20910.0,20909.0,1.514686]
[1673730669158,0.00106,20910.0,20909.0,1.390686]
[1673730669415,0.00206,20910.0,20909.0,1.529686]
[1673730669664,0.00206,20910.0,20909.0,0.673162]
[1673730669886,0.00206,20910.0,20909.0,1.629686]
[1673730670900,0.00206,20910.0,20909.0,1.929686]
[1673730671657,0.00206,20910.0,20909.0,2.04366378]
[1673730671944,0.00206,20910.0,20909.0,2.56720785]
[1673730672188,0.01508289,20913.0,20910.0,0.1]
[1673730672433,0.01508289,20913.0,20912.0,0.1143]
[1673730672677,0.01508289,20913.0,20912.0,1.490177]
[1673730672927,0.01508289,20913.0,20912.0,1.390177]
[1673730673682,0.01508289,20913.0,20912.0,1.490177]
[1673730674165,0.01608289,20913.0,20912.0,1.615177]
[1673730675141,0.01608289,20913.0,20912.0,1.515177]
[1673730675648,0.01608289,20913.0,20912.0,1.615177]
[1673730676144,0.01608289,20913.0,20912.0,1.915177]
[1673730676402,0.01608289,20913.0,20912.0,1.615177]
[1673730676666,0.01608289,20913.0,20912.0,1.915177]
[1673730680145,0.01508289,20913.0,20912.0,1.929177]
[1673730680415,0.01508289,20913.0,20912.0,1.790177]
[1673730680670,1.402e-05,20915.0,20913.0,0.11689227]
[1673730680917,1.402e-05,20915.0,20914.0,2.30785291]
[1673730681197,1.402e-05,20915.0,20914.0,2.46668365]
[1673730681467,1.402e-05,20915.0,20914.0,2.56668365]
[1673730681743,1.402e-05,20915.0,20914.0,1.944442]
[1673730681999,1.402e-05,20915.0,20914.0,1.644442]
[1673730682271,1.402e-05,20915.0,20914.0,1.896042]
[1673730683330,1.402e-05,20915.0,20914.0,1.417894]
[1673730683600,1.402e-05,20915.0,20914.0,1.279894]
[1673730683841,1.402e-05,20915.0,20914.0,1.418894]
[1673730684389,1.402e-05,20915.0,20914.0,1.557894]
[1673730684638,1.402e-05,20915.0,20914.0,1.079746]
[1673730684905,1.402e-05,20915.0,20914.0,0.323598]
[1673730685136,1.402e-05,20915.0,20914.0,0.462598]
[1673730685395,1.402e-05,20915.0,20914.0,0.2526]
[1673730685952,1.402e-05,20915.0,20913.0,0.49506227]
[1673730686208,1.402e-05,20915.0,20914.0,0.139]
[1673730686984,1.402e-05,20915.0,20913.0,0.01689227]
[1673730687488,1.402e-05,20915.0,20913.0,1.07323427]
[1673730687990,1.402e-05,20915.0,20914.0,0.1]
[1673730688247,1.402e-05,20915.0,20914.0,0.578148]
[1673730688493,1.402e-05,20915.0,20913.0,0.49506327]
[1673730688739,1.402e-05,20915.0,20913.0,0.63406327]
[1673730688740,0.00101402,20915.0,20913.0,0.63406327]
[1673730689003,0.00101402,20915.0,20913.0,0.01689227]
[1673730689248,0.00301402,20915.0,20914.0,0.139]
[1673730689504,0.00201402,20915.0,20913.0,0.01689227]
[1673730689757,0.00401402,20915.0,20913.0,0.15489227]
[1673730690021,0.00401402,20915.0,20913.0,0.63305827]
[1673730690022,0.00201402,20915.0,20913.0,0.63305827]
[1673730690266,0.00401402,20915.0,20914.0,0.139]
[1673730691515,1.402e-05,20915.0,20913.0,0.49505827]
[1673730692582,0.00201402,20915.0,20914.0,0.139]
[1673730692825,1.402e-05,20915.0,20913.0,0.49505827]
[1673730693075,1.402e-05,20915.0,20913.0,1.11221027]
[1673730693076,0.00201402,20915.0,20913.0,1.11221027]
[1673730697096,0.00201402,20915.0,20914.0,0.419862]
[1673730697354,0.00201402,20915.0,20914.0,1.376158]
[1673730697608,0.00201402,20915.0,20914.0,1.276158]
[1673730697854,0.00201402,20915.0,20914.0,0.956296]
[1673730698355,1.402e-05,20915.0,20914.0,0.956296]
[1673730698612,0.00201402,20915.0,20914.0,1.095296]
[1673730699144,0.00201402,20915.0,20914.0,1.415158]
[1673730700647,0.60710481,20920.0,20914.0,1.415158]
[1673730700648,0.35688799,20923.0,20914.0,2.79235969]
[1673730700943,0.35688799,20923.0,20917.0,1.07720169]
[1673730700944,0.5686226,20923.0,20917.0,1.07720169]
[1673730701160,0.40391349,20930.0,20926.0,0.72148345]
[1673730701466,0.40391349,20930.0,20927.0,0.209451]
[1673730701701,0.40391349,20930.0,20926.0,0.72148345]
[1673730701987,0.40391349,20930.0,20926.0,1.19935045]
[1673730701988,0.1143,20929.0,20926.0,1.19935045]
[1673730702263,0.13317008,20930.0,20926.0,1.19935045]
[1673730702787,0.13317008,20930.0,20927.0,0.117]
[1673730703041,0.13317008,20930.0,20928.0,0.955656]
[1673730703295,0.13317008,20930.0,20928.0,0.77388821]
[1673730703606,0.01887008,20930.0,20928.0,0.77388821]
[1673730703856,0.1143,20937.0,20929.0,0.419766]
[1673730704148,0.1143,20932.0,20929.0,1.11604612]
[1673730704400,0.52524833,20936.0,20929.0,1.177788]
[1673730704401,0.114,20933.0,20929.0,1.177788]
[1673730704651,0.114,20933.0,20930.0,0.319766]
[1673730704933,0.35307259,20936.0,20931.0,0.770224]
[1673730705188,0.1143,20937.0,20933.0,0.1]
[1673730705464,0.1143,20937.0,20934.0,0.955374]
[1673730705718,0.10573774,20937.0,20933.0,0.1]
[1673730706485,0.10573774,20937.0,20933.0,0.577709]
[1673730706763,0.10573774,20937.0,20933.0,0.1]
[1673730707027,0.10573774,20937.0,20933.0,0.577705]
[1673730707284,0.10573774,20937.0,20933.0,0.1]
[1673730707798,0.29646369,20937.0,20932.0,0.477737]
[1673730708076,0.96792764,20936.0,20931.0,0.0998108]
[1673730708331,0.96792764,20936.0,20927.0,0.1]
[1673730708332,0.1141,20934.0,20927.0,0.1]
[1673730708581,0.19072595,20933.0,20927.0,0.477846]
[1673730708854,0.19072595,20932.0,20927.0,0.477846]
[1673730709097,0.1143,20930.0,20927.0,0.477846]
[1673730709357,0.30502595,20930.0,20927.0,0.477846]
[1673730709614,0.30502595,20930.0,20928.0,0.319766]
[1673730709876,0.1143,20930.0,20927.0,0.716846]
[1673730710186,0.1143,20930.0,20928.0,0.319766]
[1673730710388,0.1143,20930.0,20927.0,0.616846]
[1673730710646,0.1143,20930.0,20928.0,0.1]
[1673730710894,0.1143,20930.0,20927.0,0.14]
[1673730711149,0.1143,20930.0,20927.0,0.24]
[1673730711434,0.4143,20930.0,20926.0,0.72148345]
[1673730711655,0.30502595,20930.0,20927.0,0.139]
[1673730711941,0.1143,20930.0,20927.0,0.239]
[1673730712444,0.477691,20934.0,20929.0,0.6]
[1673730712716,0.477671,20935.0,20930.0,0.19251]
[1673730712717,0.1133,20935.0,20930.0,0.19251]
[1673730712956,0.1133,20935.0,20929.0,1.1778]
[1673730713213,0.30402595,20935.0,20930.0,0.1]
[1673730713471,0.590969,20935.0,20929.0,2.225386]
[1673730713733,0.04079578,20939.0,20933.0,0.6]
[1673730714072,0.35686054,20950.0,20938.0,0.47720169]
[1673730714285,0.0016,20950.0,20939.0,0.0965535]
[1673730714554,0.477388,20948.0,20940.0,0.292365]
[1673730714807,0.477388,20948.0,20935.0,1.17766]
[1673730714808,0.66792764,20947.0,20941.0,0.0965535]
[1673730715063,0.1,20945.0,20934.0,1.05360476]
[1673730715328,0.1,20945.0,20935.0,0.0965535]
[1673730715329,0.477493,20943.0,20935.0,0.0965535]
[1673730715584,0.017113,20942.0,20931.0,0.477741]
[1673730715880,0.114,20938.0,20931.0,0.477741]
[1673730716110,0.1136,20940.0,20933.0,0.6]
[1673730716366,0.1136,20940.0,20934.0,2.2652975]
[1673730716367,0.19072595,20940.0,20934.0,2.2652975]
[1673730716844,0.19072595,20940.0,20936.0,0.6]
[1673730717118,0.1143,20943.0,20937.0,0.419766]
[1673730717369,0.1142,20944.0,20939.0,0.6]
[1673730717641,0.1141,20949.0,20943.0,0.47720169]
[1673730717926,0.30234319,20954.0,20944.0,0.2887655]
[1673730717927,0.0180371,20954.0,20944.0,0.2887655]
[1673730718186,0.47720169,20953.0,20945.0,0.5161815]
[1673730718439,0.1143,20949.0,20946.0,0.0965535]
[1673730718704,0.1135,20947.0,20942.0,0.0965535]
[1673730718951,0.66792764,20946.0,20935.0,0.1]
[1673730719214,0.1143,20943.0,20935.0,0.1]
[1673730719473,0.1143,20943.0,20932.0,0.1]
[1673730719474,0.1133,20938.0,20932.0,0.1]
[1673730719756,0.1133,20938.0,20931.0,1.879]
[1673730719757,0.19072595,20937.0,20931.0,1.879]
[1673730719999,0.19072595,20936.0,20932.0,0.1]
[1673730720263,0.19072595,20936.0,20933.0,0.919766]
[1673730720532,0.19072595,20935.0,20934.0,0.192382]
[1673730720792,0.30452595,20935.0,20930.0,0.6]
[1673730721067,0.19072595,20934.0,20930.0,0.6]
[1673730721321,0.19072595,20933.0,20927.0,1.879]
[1673730721568,0.30472595,20932.0,20927.0,1.879]
[1673730722181,0.19072595,20931.0,20927.0,1.879]
[1673730723255,0.591036,20933.0,20928.0,0.1]
[1673730723511,0.591036,20933.0,20929.0,0.6]
[1673730724044,0.477736,20933.0,20929.0,0.6]
[1673730726364,0.477704,20934.0,20929.0,0.6]
[1673730726612,0.591856,20936.0,20932.0,0.6]
[1673730727142,0.566856,20936.0,20932.0,0.6]
[1673730728916,0.3,20935.0,20932.0,0.6]
[1673730729164,0.477691,20934.0,20929.0,0.6]
[1673730729411,0.19072595,20933.0,20929.0,0.6]
[1673730729747,0.19072595,20932.0,20929.0,0.6]
[1673730730223,0.477691,20934.0,20929.0,0.6]
[1673730730491,0.35480871,20930.0,20929.0,0.6]
[1673730731275,0.477721,20933.0,20929.0,0.6]
[1673730733081,1.14616095,20933.0,20929.0,0.6]
[1673730733334,0.955435,20933.0,20929.0,0.6]
[1673730733849,1.14616095,20933.0,20929.0,0.6]
[1673730734356,0.319757,20932.0,20929.0,0.6]
[1673730734614,0.477747,20932.0,20929.0,0.6]
[1673730735603,0.955484,20932.0,20929.0,0.6]
[1673730739861,0.96792764,20931.0,20923.0,0.35567031]
[1673730740120,0.96792764,20931.0,20921.0,0.28233852]
[1673730740121,0.98768464,20930.0,20921.0,0.6]
[1673730740403,0.35434205,20928.0,20921.0,0.6]
[1673730740646,1.433628,20926.0,20921.0,0.6]
[1673730740899,0.1143,20924.0,20921.0,0.6]
[1673730741167,1.46636695,20923.0,20921.0,0.6]
[1673730741411,0.017123,20922.0,20921.0,0.6]
[1673730741663,0.89068395,20922.0,20921.0,0.6]
[1673730741904,0.89068395,20922.0,20920.0,0.00378524]
[1673730741905,1.00428395,20922.0,20920.0,0.00378524]
[1673730742161,0.733057,20921.0,20920.0,0.00378524]
[1673730742528,1.99315895,20921.0,20920.0,0.00378524]
[1673730742710,1.902433,20921.0,20920.0,0.00378524]
[1673730742982,1.802433,20921.0,20920.0,0.00378524]
[1673730743477,2.27963469,20921.0,20920.0,0.00378524]
[1673730743739,1.802433,20921.0,20920.0,0.00378524]
[1673730743974,1.689133,20921.0,20920.0,0.00378524]
[1673730745441,2.56549869,20921.0,20920.0,0.00378524]
[1673730745950,2.66549869,20921.0,20920.0,0.00378524]
[1673730746953,2.37963469,20921.0,20920.0,0.00378524]
[1673730747457,2.27963469,20921.0,20920.0,0.00378524]
[1673730748192,1.689033,20921.0,20920.0,0.00378524]
[1673730750917,1.689033,20921.0,20920.0,0.01362658]
[1673730751450,2.16623469,20921.0,20920.0,0.01362658]
[1673730751705,2.60337886,20921.0,20920.0,0.01362658]
[1673730751983,2.70337886,20921.0,20920.0,0.01362658]
[1673730752747,2.27973469,20921.0,20920.0,0.01362658]
[1673730754016,2.37973469,20921.0,20920.0,0.01362658]
[1673730754486,2.27973469,20921.0,20920.0,0.01362658]
[1673730755280,2.37973469,20921.0,20920.0,0.01362658]
[1673730755786,2.27973469,20921.0,20920.0,0.01362658]
[1673730761595,2.27973469,20921.0,20920.0,0.00862658]
[1673730762875,2.37973469,20921.0,20920.0,0.00862658]
[1673730763136,2.27973469,20921.0,20920.0,0.00862658]
[1673730764920,2.37973469,20921.0,20920.0,0.00862658]
[1673730765180,2.27973469,20921.0,20920.0,0.00862658]
[1673730765741,2.73472886,20921.0,20920.0,0.00862658]
[1673730766226,2.27973469,20921.0,20920.0,0.00862658]
[1673730768791,1.802533,20921.0,20920.0,0.00862658]
[1673730769300,1.802533,20921.0,20920.0,0.60862658]
[1673730770066,0.319757,20921.0,20920.0,0.60862658]
[1673730770328,0.477926,20924.0,20920.0,0.80122358]
[1673730770582,0.477926,20924.0,20920.0,0.05667322]
[1673730770833,0.477926,20924.0,20923.0,0.6]
[1673730771092,0.477918,20925.0,20923.0,0.6]
[1673730771343,0.477883,20926.0,20923.0,0.6]
[1673730771651,0.477872,20927.0,20923.0,0.6]
[1673730772155,0.477872,20927.0,20926.0,0.6]
[1673730772156,0.955723,20927.0,20926.0,0.6]
[1673730772903,1.38978,20927.0,20926.0,0.6]
[1673730774133,1.68978,20927.0,20926.0,0.6]
[1673730774389,1.68906872,20927.0,20926.0,0.6]
[1673730775396,2.27967041,20927.0,20926.0,0.6]
[1673730775644,2.78391495,20927.0,20926.0,0.6]
[1673730775905,2.78391495,20927.0,20925.0,0.6]
[1673730775906,2.47157643,20927.0,20925.0,0.6]
[1673730776161,0.90862469,20926.0,20925.0,0.6]
[1673730776434,0.08473066,20924.0,20921.0,0.6]
[1673730776691,0.114,20922.0,20921.0,0.6]
[1673730776942,1.57777895,20922.0,20921.0,0.6]
[1673730777452,1.387053,20922.0,20921.0,0.6]
[1673730779760,1.67135909,20922.0,20921.0,0.6]
[1673730780012,2.07692114,20922.0,20921.0,0.6]
[1673730780515,2.87938606,20922.0,20921.0,0.6]
[1673730781044,2.14856078,20922.0,20921.0,0.6]
[1673730781303,2.36292016,20922.0,20921.0,0.6]
[1673730782586,2.55412631,20922.0,20921.0,0.6]
[1673730782837,1.67135909,20922.0,20921.0,0.6]
[1673730783164,0.477965,20922.0,20921.0,0.6]
[1673730783325,0.70559612,20924.0,20921.0,0.6]
[1673730783571,0.56266366,20924.0,20921.0,0.6]
[1673730784059,0.56266366,20924.0,20922.0,0.1134]
[1673730784551,0.08473066,20924.0,20922.0,0.1134]
[1673730784798,0.56265366,20924.0,20922.0,0.1134]
[1673730785067,0.08473066,20924.0,20922.0,0.1134]
[1673730785560,0.08473066,20924.0,20923.0,0.306665]
[1673730785811,0.83515716,20929.0,20924.0,0.1]
[1673730785812,0.35733116,20929.0,20924.0,0.1]
[1673730786068,0.35733116,20929.0,20924.0,0.1143]
[1673730786312,0.14293246,20929.0,20928.0,0.6]
[1673730786567,0.13893246,20929.0,20928.0,0.6]
[1673730786816,0.43368946,20929.0,20928.0,0.6]
[1673730787310,0.91149446,20929.0,20928.0,0.6]
[1673730788269,0.797562,20929.0,20928.0,0.6]
[1673730788528,1.097562,20929.0,20928.0,0.6]
[1673730788785,1.575367,20929.0,20928.0,0.6]
[1673730791053,1.275367,20929.0,20928.0,0.60006]
[1673730792067,1.275367,20929.0,20928.0,0.6]
[1673730792809,1.575367,20929.0,20928.0,0.6]
[1673730793063,1.550367,20929.0,20928.0,0.6]
[1673730793309,2.24196739,20929.0,20923.0,1.3875]
[1673730793563,1.94721039,20929.0,20928.0,0.6]
[1673730793815,2.25908839,20929.0,20928.0,0.6]
[1673730794097,2.04468969,20929.0,20928.0,0.6]
[1673730794405,1.567488,20929.0,20928.0,0.6]
[1673730794885,1.7818867,20929.0,20928.0,0.6]
[1673730795400,1.567488,20929.0,20928.0,0.6]
[1673730796604,0.01550896,20930.0,20928.0,0.6085]
[1673730796857,0.01550896,20930.0,20929.0,0.1227]
[1673730797116,0.01550896,20930.0,20929.0,0.440189]
[1673730797875,0.01550896,20930.0,20929.0,0.917994]
[1673730798659,0.01477912,20936.0,20930.0,0.1]
[1673730798912,0.01477912,20936.0,20935.0,0.6]
[1673730799172,0.10534912,20936.0,20935.0,0.825913]
[1673730799471,0.10534912,20936.0,20935.0,0.6]
[1673730799472,0.55970176,20936.0,20935.0,0.6]
[1673730799688,1.72894815,20936.0,20933.0,0.6]
[1673730799955,0.21371806,20934.0,20933.0,0.6]
[1673730800195,1.95866906,20934.0,20933.0,0.6]
[1673730800448,2.37266906,20934.0,20933.0,0.6]
[1673730800734,2.23028516,20934.0,20933.0,0.6]
[1673730800969,2.37266906,20934.0,20933.0,0.6]
[1673730801242,3.17756945,20934.0,20933.0,0.6]
[1673730801484,3.10509294,20934.0,20933.0,0.6]
[1673730801720,3.31863875,20934.0,20933.0,0.6]
[1673730802229,3.17671751,20934.0,20933.0,0.6]
[1673730802987,3.17671751,20934.0,20933.0,0.7]
[1673730803988,2.9631717,20934.0,20933.0,0.7]
[1673730804239,2.82078685,20934.0,20933.0,0.7]
[1673730804740,2.9631717,20934.0,20933.0,0.7]
[1673730805256,2.82078685,20934.0,20933.0,0.7]
[1673730805507,2.9631717,20934.0,20933.0,0.7]
[1673730805850,2.9631717,20934.0,20933.0,0.1]
[1673730805851,3.39406498,20934.0,20933.0,0.1]
[1673730806013,3.74967575,20934.0,20933.0,0.1]
[1673730806269,3.93160299,20934.0,20933.0,0.1]
[1673730806518,3.6472969,20934.0,20933.0,0.1]
[1673730807243,3.6422969,20934.0,20933.0,0.1]
[1673730807461,2.85595154,20934.0,20933.0,0.1]
[1673730808481,2.49296431,20934.0,20933.0,0.1]
[1673730808734,1.33359416,20934.0,20933.0,0.1]
[1673730808998,0.85590316,20934.0,20933.0,0.1]
[1673730809505,0.06633416,20934.0,20933.0,0.1]
[1673730810004,1.33359416,20934.0,20933.0,0.1]
[1673730810267,1.68996342,20934.0,20933.0,0.1]
[1673730810529,1.47613164,20934.0,20933.0,0.1]
[1673730810778,1.68996342,20934.0,20933.0,0.1]
[1673730811324,2.10753864,20934.0,20933.0,0.075]
[1673730812815,1.77860582,20934.0,20933.0,0.075]
[1673730813080,1.92111677,20934.0,20933.0,0.075]
[1673730813332,1.77860423,20934.0,20933.0,0.075]
[1673730813581,1.77360423,20934.0,20933.0,0.075]
[1673730814092,2.07360423,20934.0,20933.0,0.075]
[1673730814349,1.85969432,20934.0,20933.0,0.075]
[1673730814871,0.34821216,20934.0,20933.0,0.075]
[1673730815133,0.03633416,20934.0,20933.0,0.075]
[1673730815885,0.03633416,20934.0,20933.0,0.292433]
[1673730816173,0.03633416,20934.0,20933.0,0.883747]
[1673730816929,0.03633416,20934.0,20933.0,0.406033]
[1673730818196,0.03633416,20934.0,20933.0,0.1886]
[1673730818453,0.99171616,20934.0,20933.0,0.675]
[1673730818722,1.60359416,20934.0,20933.0,0.675]
[1673730819476,1.60359416,20934.0,20933.0,0.075]
[1673730819726,2.21691677,20934.0,20933.0,0.075]
[1673730820486,2.21712289,20934.0,20933.0,0.07]
[1673730820761,2.00300686,20934.0,20933.0,0.07]
[1673730821068,1.91712595,20934.0,20933.0,0.07]
[1673730821260,1.30359416,20934.0,20933.0,0.67]
[1673730821514,1.30359416,20934.0,20933.0,0.625]
[1673730821515,0.99171616,20934.0,20933.0,0.625]
[1673730821771,1.30359416,20934.0,20933.0,0.625]
[1673730822027,0.99171616,20934.0,20933.0,0.625]
[1673730822280,1.30359416,20934.0,20933.0,0.625]
[1673730822536,0.99171616,20934.0,20933.0,0.625]
[1673730822792,0.03633416,20934.0,20933.0,0.625]
[1673730823045,0.03633416,20934.0,20933.0,1.216814]
[1673730823310,0.03633416,20934.0,20933.0,1.911961]
[1673730825316,3.416e-05,20934.0,20933.0,1.911961]
[1673730825563,3.416e-05,20934.0,20933.0,0.956533]
[1673730825564,0.19076011,20934.0,20933.0,0.956533]
[1673730825827,3.416e-05,20934.0,20933.0,0.625]
[1673730826086,1.04598616,20934.0,20933.0,0.625]
[1673730826589,1.65786416,20934.0,20933.0,0.025]
[1673730826865,1.34598616,20934.0,20933.0,0.025]
[1673730827131,1.65786416,20934.0,20933.0,0.025]
[1673730827650,1.80059641,20934.0,20933.0,0.025]
[1673730827916,2.01469478,20934.0,20933.0,0.025]
[1673730828156,1.80059641,20934.0,20933.0,0.025]
[1673730828378,1.80059641,20934.0,20933.0,0.02493355]
[1673730828921,1.35786416,20934.0,20933.0,0.02493355]
[1673730829176,1.61286416,20934.0,20933.0,0.02493355]
[1673730829432,1.75559641,20934.0,20933.0,0.02493355]
[1673730829943,1.82696253,20934.0,20933.0,0.02493355]
[1673730830732,1.96973259,20934.0,20933.0,0.02493355]
[1673730830986,1.82696253,20934.0,20933.0,0.02493355]
[1673730831309,2.11207523,20934.0,20933.0,0.02493355]
[1673730831772,1.82696253,20934.0,20933.0,0.02493355]
[1673730832017,1.96973257,20934.0,20933.0,0.02493355]
[1673730832540,1.6650642,20934.0,20933.0,0.02493355]
[1673730832805,1.3650642,20934.0,20933.0,0.02493355]
[1673730833057,1.0531862,20934.0,20933.0,0.02493355]
[1673730833305,0.43272516,20934.0,20933.0,0.02493355]
[1673730833834,0.477689,20935.0,20933.0,0.02493355]
[1673730834347,0.62045904,20935.0,20933.0,0.02493355]
[1673730834614,1.04016513,20934.0,20933.0,0.02493355]
[1673730834866,2.29554713,20934.0,20933.0,0.02493355]
[1673730835115,2.29555995,20934.0,20933.0,0.02493355]
[1673730835877,2.01044725,20934.0,20933.0,0.02493355]
[1673730836632,3.07287859,20934.0,20933.0,0.02493355]
[1673730836895,3.18647859,20934.0,20933.0,0.02493355]
[1673730837170,2.35914718,20934.0,20933.0,0.01877617]
[1673730837715,2.40903638,20934.0,20933.0,0.01877617]
[1673730838681,2.35914718,20934.0,20933.0,0.01877617]
[1673730839466,2.78783804,20934.0,20933.0,0.01877617]
[1673730841750,2.78783804,20934.0,20933.0,0.01855217]
[1673730842003,2.39893718,20934.0,20933.0,0.01855217]
[1673730842510,2.87545354,20934.0,20933.0,0.01855217]
[1673730842758,0.00797983,20932.0,20928.0,0.6]
[1673730843011,0.500159,20929.0,20928.0,0.6]
[1673730843272,2.66586601,20929.0,20928.0,0.6]
[1673730843525,2.66586601,20929.0,20924.0,1.32225648]
[1673730843526,2.43610444,20929.0,20925.0,0.6]
[1673730843781,0.50022432,20926.0,20925.0,0.6]
[1673730844038,2.73645027,20926.0,20925.0,0.6]
[1673730844313,2.54553873,20926.0,20925.0,0.6]
[1673730844812,2.40251187,20926.0,20925.0,0.6]
[1673730845320,2.88673257,20926.0,20925.0,0.6]
[1673730845567,2.88673257,20926.0,20925.0,0.54000001]
[1673730845827,2.89555163,20926.0,20925.0,0.54000001]
[1673730846361,2.48135163,20926.0,20925.0,0.54000001]
[1673730846640,1.267626,20926.0,20925.0,0.54000001]
[1673730846885,0.477874,20926.0,20925.0,0.54000001]
[1673730847387,0.477862,20927.0,20925.0,0.54000001]
[1673730847898,0.477845,20928.0,20925.0,0.54000001]
[1673730848900,1.09849189,20928.0,20925.0,0.54000001]
[1673730849389,0.955673,20928.0,20925.0,0.54000001]
[1673730849632,0.477845,20928.0,20925.0,0.54000001]
[1673730851130,0.477845,20928.0,20924.0,0.48307548]
[1673730851379,0.66857095,20928.0,20924.0,0.48307548]
[1673730851873,0.66857095,20928.0,20927.0,0.54000001]
[1673730852124,0.477845,20928.0,20927.0,0.54000001]
[1673730853896,1.28921784,20928.0,20927.0,0.54000001]
[1673730854147,2.55919516,20928.0,20925.0,0.54000001]
[1673730854397,0.21407265,20926.0,20924.0,0.00515648]
[1673730854651,2.045569,20925.0,20924.0,0.00515648]
[1673730854896,2.18821765,20925.0,20924.0,0.00515648]
[1673730855666,3.25128581,20925.0,20924.0,0.00515648]
[1673730855920,3.00466915,20925.0,20924.0,0.00515648]
[1673730856171,1.267672,20925.0,20924.0,0.00515648]
[1673730856435,0.95578,20926.0,20924.0,0.00515648]
[1673730856723,0.477892,20926.0,20924.0,0.00515648]
[1673730857438,0.477874,20927.0,20924.0,0.00515648]
[1673730857695,0.477874,20927.0,20926.0,0.54000001]
[1673730857965,0.477846,20928.0,20926.0,0.54000001]
[1673730858470,0.477821,20929.0,20926.0,0.54000001]
[1673730860191,0.950626,20929.0,20926.0,0.54000001]
[1673730861233,1.09327995,20929.0,20926.0,0.54000001]
[1673730861487,0.950626,20929.0,20926.0,0.54000001]
[1673730861981,1.09327995,20929.0,20926.0,0.54000001]
[1673730862251,0.950626,20929.0,20926.0,0.54000001]
[1673730863272,0.950626,20929.0,20926.0,7.54000001]
[1673730863519,0.945626,20929.0,20927.0,0.21752]
[1673730863771,0.945626,20929.0,20926.0,7.54000001]
[1673730864019,0.945626,20929.0,20927.0,0.217512]
[1673730864267,0.945626,20929.0,20926.0,7.54000001]
[1673730864548,0.945626,20929.0,20927.0,0.10571356]
[1673730864826,0.945626,20929.0,20926.0,7.0]
[1673730865056,0.945626,20929.0,20927.0,0.105714]
[1673730865319,0.945626,20929.0,20926.0,7.0]
[1673730865571,0.945626,20929.0,20927.0,0.105714]
[1673730865825,0.945626,20929.0,20926.0,7.0]
[1673730866074,0.0001,20930.0,20928.0,0.1143]
[1673730866606,0.0001,20930.0,20929.0,0.1057]
[1673730867147,0.0001,20930.0,20927.0,0.1143]
[1673730867411,0.19082595,20930.0,20927.0,0.1143]
[1673730867678,0.477886,20930.0,20928.0,0.105705]
[1673730867936,0.477886,20930.0,20927.0,0.1143]
[1673730868191,0.477886,20930.0,20928.0,0.105706]
[1673730868412,0.477886,20930.0,20927.0,0.1143]
[1673730868683,0.477886,20930.0,20928.0,0.105706]
[1673730868950,1.09832295,20930.0,20926.0,7.0]
[1673730869198,0.14265395,20928.0,20926.0,7.0]
[1673730869447,0.955702,20927.0,20926.0,7.0]
[1673730871462,0.955702,20927.0,20926.0,7.1]
[1673730871714,1.255702,20927.0,20926.0,7.1]
[1673730872468,1.39835595,20927.0,20926.0,7.1]
[1673730872713,1.61233688,20927.0,20926.0,7.1]
[1673730873476,1.39835595,20927.0,20926.0,7.1]
[1673730873735,1.61233688,20927.0,20926.0,7.1]
[1673730874231,1.09835595,20927.0,20926.0,7.1]
[1673730874484,1.31233688,20927.0,20926.0,7.1]
[1673730874731,1.09835595,20927.0,20926.0,7.1]
[1673730875713,0.955702,20927.0,20926.0,7.1]